bitfinex/quotes_SOLUSD_20250814
["timestamp","ask_amount","ask_price","bid_price","bid_amount"]
[1755182411197,0.72,197.85,197.84,43.04]
[1755182411603,18.2849443,197.85,197.84,43.04]
[1755182411824,26.0,197.82,197.8,0.1]
[1755182412026,26.0,197.78,197.76,0.03]
[1755182412231,26.0,197.74,197.7,43.04]
[1755182412532,0.72,197.73,197.7,43.04]
[1755182412713,18.2849443,197.73,197.7,43.04]
[1755182413030,0.72,197.72,197.7,43.04]
[1755182413499,18.2849443,197.72,197.7,43.04]
[1755182413836,0.72,197.78,197.71,17.6693272]
[1755182414125,44.2849443,197.83,197.76,17.5649443]
[1755182414330,0.72,197.83,197.78,17.5649443]
[1755182414639,17.5649443,197.81,197.77,43.06]
[1755182414819,17.5649443,197.78,197.71,22.72723583]
[1755182415002,17.5649443,197.76,197.72,43.06]
[1755182415204,0.72,197.81,197.74,17.5649443]
[1755182415405,0.72,197.85,197.8,17.5649443]
[1755182415718,0.72,197.84,197.81,43.06]
[1755182416599,0.72,197.84,197.81,48.11523824]
[1755182416912,5.05203597,197.94,197.83,17.5649443]
[1755182417229,18.2849443,197.94,197.83,15.10621557]
[1755182417452,18.2849443,197.94,197.87,17.5649443]
[1755182417727,17.5649443,197.91,197.88,43.06]
[1755182417907,0.72,197.9,197.88,43.06]
[1755182418316,17.5649443,197.91,197.84,22.61952764]
[1755182418618,5.05242629,197.93,197.76,17.5649443]
[1755182418619,17.5649443,197.85,197.76,17.5649443]
[1755182418850,17.5649443,197.82,197.77,43.06]
[1755182419004,18.2849443,197.88,197.81,17.5649443]
[1755182419204,0.72,197.92,197.86,17.5649443]
[1755182419423,5.14280565,197.93,197.87,43.06]
[1755182419731,17.5649443,197.89,197.88,43.06]
[1755182419905,18.2849443,197.89,197.88,43.06]
[1755182420442,18.2849443,197.89,197.84,43.06]
[1755182420641,17.5649443,197.85,197.84,43.06]
[1755182420844,43.5649443,197.89,197.84,43.06]
[1755182421018,17.5649443,197.85,197.84,43.06]
[1755182421218,18.2849443,197.85,197.82,43.06]
[1755182421433,17.5649443,197.83,197.82,43.06]
[1755182421618,23.33978936,197.83,197.82,43.06]
[1755182421820,5.06414256,197.93,197.82,43.06]
[1755182421821,26.0,197.9,197.82,60.6249443]
[1755182422021,0.72,197.97,197.89,17.5649443]
[1755182422245,17.5649443,197.94,197.9,43.06]
[1755182422422,0.72,197.93,197.91,43.06]
[1755182422741,26.0,197.89,197.83,43.06]
[1755182422947,17.5649443,197.84,197.83,43.06]
[1755182423146,18.2849443,197.84,197.83,43.06]
[1755182423715,23.33953386,197.84,197.83,43.06]
[1755182424121,23.33953386,197.84,197.79,43.06]
[1755182424340,17.5649443,197.8,197.74,0.03]
[1755182424538,17.5649443,197.8,197.75,43.06]
[1755182424733,0.72,197.83,197.75,60.6249443]
[1755182424951,26.0,197.87,197.78,17.5649443]
[1755182425243,17.5649443,197.84,197.78,17.5649443]
[1755182425446,26.0,197.87,197.75,43.06]
[1755182425447,17.5649443,197.82,197.75,43.06]
[1755182425626,17.5649443,197.81,197.75,48.11684382]
[1755182425828,17.5649443,197.81,197.75,43.06]
[1755182426045,22.62041076,197.81,197.75,43.06]
[1755182426219,17.5649443,197.8,197.75,43.06]
[1755182426425,17.5649443,197.8,197.76,43.06]
[1755182427048,17.5649443,197.79,197.76,43.06]
[1755182427246,5.05546646,197.81,197.76,43.06]
[1755182427550,0.72,197.81,197.76,43.06]
[1755182427849,0.72,197.86,197.79,17.5649443]
[1755182428056,14.180819,197.98,197.8,17.5649443]
[1755182428057,5.0525783,197.92,197.8,17.5649443]
[1755182428224,0.06,197.88,197.83,17.5649443]
[1755182428423,0.06,197.88,197.87,17.5649443]
[1755182428618,0.06,197.88,197.87,60.6249443]
[1755182429051,0.06,197.88,197.87,43.74]
[1755182429238,0.06,197.88,197.87,43.06]
[1755182429927,17.6249443,197.88,197.87,43.06]
[1755182430128,0.06,197.88,197.87,43.06]
[1755182430454,17.6249443,197.88,197.87,43.06]
[1755182430749,18.2849443,197.88,197.76,0.72]
[1755182430956,17.5649443,197.83,197.77,43.06]
[1755182431249,17.5649443,197.83,197.76,0.72]
[1755182431250,17.5649443,197.82,197.78,43.06]
[1755182431442,17.5649443,197.81,197.78,43.06]
[1755182431643,0.66,197.84,197.74,0.03]
[1755182431843,17.5649443,197.81,197.75,43.04]
[1755182432032,17.5649443,197.8,197.75,43.04]
[1755182432845,17.5649443,197.81,197.75,43.04]
[1755182433046,0.06,197.88,197.8,17.5649443]
[1755182433237,0.06,197.88,197.85,17.5649443]
[1755182433431,0.06,197.88,197.86,43.04]
[1755182433958,0.06,197.88,197.79,15.10621557]
[1755182433959,35.7898886,197.87,197.74,0.03]
[1755182434137,17.5649443,197.75,197.74,0.03]
[1755182434648,18.2249443,197.75,197.74,0.03]
[1755182435764,22.62183431,197.75,197.74,0.03]
[1755182436366,23.28183431,197.75,197.74,0.03]
[1755182436746,5.05668507,197.76,197.74,0.03]
[1755182436950,17.5649443,197.75,197.74,0.03]
[1755182437767,23.28183431,197.75,197.74,1e-08]
[1755182439448,5.71689001,197.75,197.74,1e-08]
[1755182439661,23.28183431,197.75,197.72,0.03]
[1755182439853,43.5649443,197.73,197.72,0.03]
[1755182440848,44.2249443,197.73,197.72,0.03]
[1755182441347,26.66,197.73,197.72,0.03]
[1755182441550,26.0,197.73,197.72,0.03]
[1755182441771,43.5649443,197.73,197.72,0.03]
[1755182442272,48.6223458,197.73,197.72,0.03]
[1755182442463,43.5649443,197.73,197.72,0.03]
[1755182442667,31.0574015,197.73,197.72,0.03]
[1755182442870,31.0574015,197.73,197.68,0.03]
[1755182442871,26.0,197.65,197.63,0.03]
[1755182443178,43.5649443,197.65,197.63,0.03]
[1755182443362,17.5649443,197.64,197.63,0.03]
[1755182443772,22.62464881,197.64,197.63,0.03]
[1755182443976,27.01218651,197.64,197.63,0.03]
[1755182444161,30.36840036,197.64,197.63,0.03]
[1755182444888,30.36840036,197.64,197.59,0.03]
[1755182444889,41.10621557,197.61,197.59,1e-08]
[1755182445056,26.0,197.57,197.47,0.03]
[1755182445257,26.0,197.53,197.47,0.03]
[1755182445566,17.5649443,197.5,197.47,0.03]
[1755182445762,26.0,197.52,197.47,0.03]
[1755182445985,17.5649443,197.49,197.47,0.03]
[1755182446176,43.5649443,197.48,197.47,0.03]
[1755182446371,44.2249443,197.48,197.47,0.03]
[1755182446576,59.33115987,197.48,197.47,0.03]
[1755182446761,18.2249443,197.48,197.47,0.03]
[1755182447084,44.2249443,197.48,197.47,0.03]
[1755182447292,26.0,197.45,197.33,0.72]
[1755182447586,43.5649443,197.44,197.33,5.78762769]
[1755182447789,5.06508635,197.43,197.34,5.78734035]
[1755182448089,26.0,197.44,197.35,0.72]
[1755182448382,17.5649443,197.4,197.35,0.72]
[1755182448583,26.0,197.44,197.43,0.03]
[1755182448900,43.5649443,197.44,197.43,0.03]
[1755182449079,26.0,197.44,197.43,0.03]
[1755182449284,26.0,197.46,197.43,0.03]
[1755182449586,5.06329794,197.5,197.43,0.03]
[1755182449782,12.65545524,197.55,197.47,17.5649443]
[1755182449783,17.5649443,197.53,197.47,17.5649443]
[1755182449987,17.5649443,197.53,197.45,5.0945733]
[1755182449988,17.5649443,197.53,197.46,17.5649443]
[1755182450190,43.5649443,197.52,197.45,17.5949443]
[1755182450581,5.06200961,197.55,197.45,17.5949443]
[1755182450769,17.5649443,197.52,197.45,17.5949443]
[1755182450970,17.5649443,197.52,197.45,0.03]
[1755182451166,5.06200961,197.55,197.45,17.5949443]
[1755182451404,0.66,197.59,197.49,17.5649443]
[1755182451571,17.5649443,197.58,197.49,0.72]
[1755182451770,4.24371523,197.6,197.49,5.78339944]
[1755182451771,17.5649443,197.55,197.49,5.78339944]
[1755182452167,17.5649443,197.54,197.48,43.04]
[1755182452376,0.66,197.58,197.48,43.04]
[1755182452579,8.05994737,197.63,197.53,17.5649443]
[1755182452894,17.5649443,197.62,197.55,17.5649443]
[1755182453199,5.05970451,197.64,197.58,17.5649443]
[1755182453200,17.5649443,197.64,197.58,17.5649443]
[1755182453498,5.08796887,197.65,197.59,17.5649443]
[1755182453700,0.66,197.64,197.56,43.04]
[1755182454066,17.5649443,197.63,197.57,17.5649443]
[1755182454287,26.0,197.64,197.56,65.66669233]
[1755182454496,26.0,197.64,197.57,17.5649443]
[1755182454688,26.0,197.64,197.56,48.10174803]
[1755182454689,17.5649443,197.62,197.56,43.04]
[1755182455190,17.5649443,197.63,197.56,60.6049443]
[1755182455393,17.5649443,197.62,197.56,60.6049443]
[1755182455593,26.0,197.64,197.56,60.6049443]
[1755182455777,17.5649443,197.62,197.56,60.6049443]
[1755182456293,17.5649443,197.61,197.56,43.04]
[1755182456892,17.5649443,197.58,197.56,43.04]
[1755182457073,17.5649443,197.58,197.54,43.02]
[1755182457279,17.5649443,197.6,197.54,43.74]
[1755182457471,17.5649443,197.59,197.54,43.02]
[1755182457672,0.66,197.59,197.54,43.02]
[1755182457876,17.5649443,197.57,197.54,43.02]
[1755182458091,22.62650698,197.57,197.54,43.02]
[1755182458789,17.5649443,197.56,197.45,15.13621557]
[1755182459098,17.5649443,197.56,197.46,43.02]
[1755182459099,17.5649443,197.51,197.46,43.02]
[1755182459604,17.71530565,197.57,197.46,43.02]
[1755182459605,17.5649443,197.5,197.46,43.02]
[1755182459773,26.66,197.54,197.46,43.02]
[1755182459976,0.66,197.6,197.51,17.5649443]
[1755182460199,0.66,197.6,197.49,5.06354752]
[1755182460200,43.5649443,197.58,197.49,5.06354752]
[1755182460507,17.5649443,197.51,197.45,0.72]
[1755182460696,17.5649443,197.51,197.46,43.0]
[1755182460896,0.7,197.54,197.46,43.0]
[1755182460897,26.0,197.52,197.46,43.0]
[1755182461203,17.5649443,197.51,197.46,43.0]
[1755182461800,17.5649443,197.48,197.46,43.0]
[1755182462507,18.2649443,197.47,197.46,43.0]
[1755182462685,26.0,197.46,197.45,0.03]
[1755182462875,43.5649443,197.46,197.45,0.03]
[1755182463079,47.97474487,197.46,197.39,0.03]
[1755182463282,43.5649443,197.4,197.39,0.03]
[1755182464204,48.63080042,197.4,197.39,0.03]
[1755182464873,0.7,197.46,197.39,0.03]
[1755182465081,26.0,197.45,197.39,0.03]
[1755182465484,0.7,197.51,197.42,17.5649443]
[1755182465683,17.5649443,197.51,197.44,17.5649443]
[1755182465884,0.7,197.54,197.44,60.5649443]
[1755182466088,17.5649443,197.52,197.46,17.5649443]
[1755182466478,5.76251531,197.54,197.44,43.0]
[1755182466678,17.5649443,197.5,197.44,60.5649443]
[1755182466881,26.0,197.51,197.45,17.5649443]
[1755182467100,26.0,197.51,197.44,43.0]
[1755182467305,5.06251531,197.54,197.46,17.5649443]
[1755182467601,5.06251531,197.54,197.48,17.5649443]
[1755182467602,17.5649443,197.54,197.48,17.5649443]
[1755182467796,17.5649443,197.57,197.51,17.5649443]
[1755182468100,17.5649443,197.52,197.45,37.73550939]
[1755182468304,17.5649443,197.52,197.42,26.0]
[1755182468305,17.5649443,197.51,197.43,5.06508635]
[1755182468690,17.5649443,197.51,197.45,17.5649443]
[1755182468896,17.5649443,197.51,197.43,5.06508635]
[1755182468897,17.5649443,197.49,197.42,5.06531758]
[1755182469091,17.5649443,197.46,197.39,15.13621557]
[1755182469298,17.5649443,197.46,197.4,60.5449443]
[1755182469602,17.5649443,197.48,197.42,17.5649443]
[1755182469803,17.5649443,197.48,197.4,48.04583245]
[1755182469804,26.0,197.5,197.45,17.5649443]
[1755182470110,0.06,197.51,197.47,22.62900466]
[1755182470420,0.06,197.51,197.47,5.06406036]
[1755182470705,17.6249443,197.51,197.46,48.04427942]
[1755182470880,0.06,197.51,197.49,17.5649443]
[1755182471081,0.06,197.51,197.5,17.9549443]
[1755182471306,0.06,197.51,197.5,33.06115987]
[1755182471712,0.06,197.51,197.5,17.9549443]
[1755182471900,0.06,197.51,197.5,42.98]
[1755182472200,0.06,197.52,197.51,15.10621557]
[1755182472385,0.06,197.52,197.51,76.02115987]
[1755182472588,0.06,197.52,197.51,75.63115987]
[1755182473006,0.06,197.52,197.51,76.02115987]
[1755182473203,1e-08,197.52,197.51,76.02115987]
[1755182474109,1e-08,197.52,197.51,81.08419465]
[1755182474607,1e-08,197.52,197.51,38.12419465]
[1755182474807,1e-08,197.52,197.51,80.67419465]
[1755182475010,1e-08,197.52,197.51,17.5649443]
[1755182475217,1e-08,197.52,197.51,75.61115987]
[1755182475385,1e-08,197.52,197.48,20.17001949]
[1755182475386,1e-08,197.52,197.49,15.10621557]
[1755182475707,1e-08,197.52,197.51,32.67115987]
[1755182476112,1e-08,197.52,197.51,37.73419465]
[1755182476318,0.06,197.55,197.54,17.5649443]
[1755182476700,0.06,197.55,197.54,17.9549443]
[1755182477687,0.06,197.55,197.54,23.01721017]
[1755182478943,1e-08,197.55,197.54,38.12342574]
[1755182479589,1e-08,197.55,197.54,81.04342574]
[1755182479909,1e-08,197.55,197.54,80.65342574]
[1755182481042,1e-08,197.55,197.54,15.10621557]
[1755182481244,1e-08,197.55,197.54,75.57115987]
[1755182481537,1e-08,197.55,197.54,38.23965232]
[1755182481736,1e-08,197.55,197.54,37.73342574]
[1755182481937,1e-08,197.55,197.54,80.63342574]
[1755182482145,1e-08,197.55,197.54,81.02342574]
[1755182482308,1e-08,197.55,197.54,37.73342574]
[1755182482506,1e-08,197.55,197.54,80.63342574]
[1755182482833,1e-08,197.55,197.54,38.12342574]
[1755182483131,1e-08,197.55,197.54,80.61342574]
[1755182483810,1e-08,197.55,197.54,37.73342574]
[1755182484012,1e-08,197.55,197.48,12.65936282]
[1755182484213,1e-08,197.55,197.53,17.5649443]
[1755182484540,1e-08,197.55,197.41,25.15]
[1755182484541,18.2649443,197.54,197.4,15.181034]
[1755182484735,17.5649443,197.5,197.44,17.5649443]
[1755182485033,0.7,197.49,197.46,17.5649443]
[1755182485235,0.7,197.53,197.48,17.5649443]
[1755182485439,0.7,197.53,197.47,42.88]
[1755182485440,0.7,197.53,197.5,17.5649443]
[1755182485740,0.7,197.53,197.51,42.88]
[1755182485912,0.7,197.52,197.51,42.88]
[1755182486739,18.2649443,197.52,197.45,20.17061865]
[1755182487039,0.7,197.51,197.46,65.48917047]
[1755182487215,17.5649443,197.52,197.46,65.48917047]
[1755182487542,0.7,197.5,197.46,65.48917047]
[1755182487724,5.06262046,197.53,197.46,42.86]
[1755182487725,0.7,197.49,197.46,42.86]
[1755182487923,1e-08,197.55,197.39,0.42]
[1755182487924,0.7,197.48,197.47,42.86]
[1755182488245,0.7,197.48,197.39,5.09607694]
[1755182488445,17.5649443,197.47,197.4,60.4249443]
[1755182488736,0.7,197.46,197.41,17.5649443]
[1755182488934,26.0,197.49,197.42,5.06534292]
[1755182488935,0.7,197.45,197.42,5.06534292]
[1755182489127,0.7,197.45,197.43,42.86]
[1755182489344,68.62836579,198.25,197.43,42.86]
[1755182489345,0.7,197.48,197.44,17.5649443]
[1755182489512,0.7,197.48,197.46,17.5649443]
[1755182489709,0.7,197.48,197.47,42.84]
[1755182489913,18.2649443,197.48,197.47,42.84]
[1755182490136,26.0,197.45,197.42,0.03]
[1755182490340,5.06335143,197.5,197.42,0.03]
[1755182490341,0.7,197.47,197.43,42.84]
[1755182490540,0.7,197.47,197.43,60.4049443]
[1755182490745,26.72,197.46,197.43,42.84]
[1755182491041,26.72,197.46,197.43,47.90506564]
[1755182491549,26.72,197.46,197.42,17.5949443]
[1755182491550,0.72,197.45,197.42,0.03]
[1755182491736,0.72,197.45,197.43,42.84]
[1755182491918,26.0,197.43,197.42,42.87]
[1755182492248,44.2849443,197.43,197.39,0.03]
[1755182492540,17.5649443,197.41,197.39,0.03]
[1755182492840,26.72,197.4,197.39,0.03]
[1755182493339,49.35080042,197.4,197.39,0.03]
[1755182493540,49.35080042,197.4,197.39,42.85]
[1755182493942,49.35080042,197.4,197.39,0.03]
[1755182494139,49.35080042,197.4,197.37,0.03]
[1755182494446,18.2849443,197.39,197.37,0.03]
[1755182494648,0.72,197.38,197.37,0.03]
[1755182495445,0.72,197.41,197.37,0.03]
[1755182495647,0.72,197.4,197.37,0.03]
[1755182495948,17.5649443,197.38,197.37,0.03]
[1755182496125,0.72,197.38,197.37,42.85]
[1755182496645,0.72,197.38,197.37,0.03]
[1755182496646,18.2849443,197.38,197.37,0.03]
[1755182496849,26.72,197.38,197.37,0.03]
[1755182497217,26.0,197.38,197.37,0.03]
[1755182497619,26.72,197.38,197.37,0.03]
[1755182498014,49.35131373,197.38,197.29,36.4]
[1755182498218,43.5649443,197.36,197.3,42.82]
[1755182498429,26.0,197.36,197.3,42.82]
[1755182498719,26.0,197.36,197.33,17.5649443]
[1755182498914,26.0,197.36,197.34,17.5649443]
[1755182499144,26.0,197.37,197.35,42.8]
[1755182499339,26.72,197.37,197.35,42.8]
[1755182499849,0.72,197.36,197.35,42.8]
[1755182500243,0.72,197.36,197.29,36.4]
[1755182500422,0.72,197.36,197.3,42.8]
[1755182500743,0.72,197.37,197.32,17.5649443]
[1755182500948,26.0,197.35,197.32,17.5649443]
[1755182501118,26.0,197.35,197.3,42.8]
[1755182501320,26.72,197.35,197.3,42.8]
[1755182501526,26.72,197.35,197.31,17.5649443]
[1755182501842,0.72,197.35,197.32,17.5649443]
[1755182502038,26.72,197.38,197.33,17.5649443]
[1755182502342,26.0,197.37,197.34,42.8]
[1755182502541,26.72,197.36,197.35,42.78]
[1755182503121,31.78688285,197.36,197.35,42.78]
[1755182503344,26.72,197.36,197.35,42.78]
[1755182503525,26.0,197.37,197.35,42.78]
[1755182503726,0.72,197.39,197.35,54.96870302]
[1755182503924,4.95078997,197.41,197.37,12.18870302]
[1755182504144,17.97382152,197.43,197.37,12.18870302]
[1755182504349,26.0,197.4,197.37,12.18870302]
[1755182504545,0.72,197.39,197.36,12.18870302]
[1755182504721,26.72,197.39,197.36,12.18870302]
[1755182505048,0.72,197.38,197.37,42.78]
[1755182505221,5.78636943,197.38,197.37,42.78]
[1755182505420,5.78636943,197.38,197.32,5.06789341]
[1755182505421,5.78636943,197.38,197.33,12.18870302]
[1755182505642,0.72,197.37,197.35,12.18870302]
[1755182505838,26.0,197.38,197.36,42.78]
[1755182506546,26.72,197.38,197.36,42.78]
[1755182506741,0.72,197.37,197.33,12.18870302]
[1755182507326,0.72,197.37,197.34,42.76]
[1755182507836,5.78672607,197.37,197.34,42.76]
[1755182508241,12.18870302,197.35,197.28,0.2980379]
[1755182508454,0.72,197.36,197.28,0.2980379]
[1755182508455,26.0,197.34,197.29,54.94870302]
[1755182508634,0.72,197.36,197.32,12.18870302]
[1755182508834,26.0,197.35,197.33,42.74]
[1755182509857,0.72,197.38,197.34,12.18870302]
[1755182510045,26.72,197.37,197.33,42.74]
[1755182510229,0.72,197.36,197.33,42.74]
[1755182510434,26.0,197.37,197.33,42.74]
[1755182510435,26.0,197.37,197.34,42.74]
[1755182510744,26.0,197.37,197.35,42.74]
[1755182511052,0.72,197.36,197.32,5.09786381]
[1755182511258,26.0,197.37,197.33,5.06749906]
[1755182511431,12.18870302,197.34,197.32,0.03]
[1755182511631,0.72,197.33,197.32,42.75]
[1755182511843,0.72,197.37,197.32,42.75]
[1755182512031,0.72,197.37,197.32,54.93870302]
[1755182512238,12.18870302,197.39,197.33,12.18870302]
[1755182512640,26.0,197.36,197.32,42.75]
[1755182512837,26.72,197.36,197.33,0.03]
[1755182513130,0.72,197.35,197.33,0.03]
[1755182513344,5.78713959,197.35,197.34,42.72]
[1755182513546,26.0,197.36,197.34,42.72]
[1755182513749,5.04510967,197.41,197.35,12.18870302]
[1755182513961,12.96870302,197.42,197.33,15.13621557]
[1755182514259,12.18870302,197.39,197.33,0.03]
[1755182514433,12.18870302,197.36,197.33,0.03]
[1755182514772,0.72,197.35,197.34,42.7]
[1755182515051,26.0,197.35,197.34,42.7]
[1755182515358,43.97584261,197.35,197.33,0.03]
[1755182515534,0.72,197.34,197.33,0.03]
[1755182515731,12.90870302,197.34,197.33,0.03]
[1755182515933,16.95794822,197.34,197.33,0.03]
[1755182516236,12.90870302,197.34,197.33,0.03]
[1755182516442,0.72,197.34,197.33,0.03]
[1755182516647,17.08011301,197.34,197.33,0.03]
[1755182517272,22.14750938,197.34,197.33,0.03]
[1755182517629,17.97609939,197.34,197.33,0.03]
[1755182518663,22.0332037,197.34,197.33,0.03]
[1755182518858,17.97609939,197.34,197.33,0.03]
[1755182520562,5.06739637,197.34,197.33,1e-08]
[1755182520740,17.97609939,197.34,197.33,1e-08]
[1755182521837,5.78739637,197.34,197.33,1e-08]
[1755182522040,12.66636844,197.38,197.33,1e-08]
[1755182522041,12.18870302,197.36,197.33,1e-08]
[1755182522237,4.23422529,197.4,197.35,12.18870302]
[1755182522440,4.23422529,197.4,197.36,42.66]
[1755182522960,5.065798,197.41,197.36,42.66]
[1755182523153,0.72,197.4,197.37,42.64]
[1755182523439,5.06636943,197.38,197.37,42.64]
[1755182524042,26.0,197.36,197.35,42.64]
[1755182524351,26.0,197.36,197.33,1e-08]
[1755182524352,38.90870302,197.36,197.33,1e-08]
[1755182524560,12.18870302,197.34,197.33,1e-08]
[1755182524966,9.2496382,197.42,197.33,1e-08]
[1755182525271,26.0,197.36,197.33,1e-08]
[1755182525848,17.25535916,197.37,197.33,1e-08]
[1755182526051,0.72,197.36,197.33,42.62000001]
[1755182526260,12.90870302,197.35,197.33,42.62000001]
[1755182526461,31.06665614,197.37,197.33,42.62000001]
[1755182526972,31.06665614,197.37,197.33,55.31870303]
[1755182527273,26.72,197.37,197.33,42.62000001]
[1755182527461,26.0,197.35,197.34,12.18870302]
[1755182527658,26.0,197.35,197.34,54.78870302]
[1755182527980,26.0,197.36,197.34,42.6]
[1755182528359,10.08731289,197.42,197.35,12.69870302]
[1755182528567,10.08731289,197.42,197.37,12.18870302]
[1755182528760,10.08731289,197.42,197.36,12.18870302]
[1755182528761,0.72,197.41,197.36,12.18870302]
[1755182528962,12.18870302,197.39,197.36,42.6]
[1755182529179,12.90870302,197.38,197.36,42.6]
[1755182529355,5.06662613,197.37,197.36,42.6]
[1755182529555,17.25532915,197.37,197.36,42.6]
[1755182529751,26.0,197.34,197.33,1e-08]
[1755182529974,0.72,197.37,197.33,1e-08]
[1755182530177,12.18870302,197.38,197.33,1e-08]
[1755182530475,26.0,197.35,197.33,1e-08]
[1755182531174,5.06561029,197.41,197.33,1e-08]
[1755182531175,20.06563907,197.34,197.33,1e-08]
[1755182531373,25.13303544,197.34,197.33,1e-08]
[1755182531783,12.94433242,197.34,197.33,1e-08]
[1755182531960,25.13303544,197.34,197.33,1e-08]
[1755182532160,12.94433242,197.34,197.33,1e-08]
[1755182532370,25.13303544,197.34,197.33,1e-08]
[1755182532755,44.43731326,197.34,197.33,1e-08]
[1755182532955,44.43731326,197.34,197.29,42.58]
[1755182532956,68.84087202,197.34,197.16,0.51]
[1755182533182,68.84087202,197.34,197.17,54.74870302]
[1755182533183,12.18870302,197.23,197.17,54.74870302]
[1755182533480,15.10621557,197.3,197.22,12.18870302]
[1755182533481,5.06916306,197.28,197.22,12.18870302]
[1755182533680,12.66849092,197.34,197.18,15.61621557]
[1755182533681,26.0,197.27,197.26,12.18870302]
[1755182533980,5.06844033,197.3,197.26,12.18870302]
[1755182534164,3.76946523,197.29,197.23,43.05]
[1755182534369,31.06844033,197.3,197.23,43.05]
[1755182534677,26.0,197.24,197.23,42.54]
[1755182535270,38.90870302,197.24,197.17,12.18870302]
[1755182535472,38.90870302,197.24,197.16,12.18870302]
[1755182535473,17.2589256,197.23,197.16,12.18870302]
[1755182535672,17.2589256,197.23,197.18,42.54]
[1755182535872,17.9789256,197.23,197.18,42.54]
[1755182536163,5.07022258,197.23,197.18,55.23870302]
[1755182536371,5.07022258,197.23,197.18,54.72870302]
[1755182536857,5.07022258,197.23,197.19,12.18870302]
[1755182537557,5.07022258,197.23,197.18,42.54]
[1755182537558,5.07022258,197.23,197.18,54.72870302]
[1755182537984,5.07022258,197.23,197.18,42.54]
[1755182538182,5.79022258,197.23,197.18,54.72870302]
[1755182538387,31.06999842,197.24,197.18,42.54]
[1755182538557,12.90870302,197.29,197.22,12.18870302]
[1755182538762,26.0,197.25,197.23,42.52]
[1755182538963,12.90870302,197.29,197.23,42.52]
[1755182538964,5.06868062,197.29,197.24,12.18870302]
[1755182539779,5.06868062,197.29,197.23,43.03]
[1755182539780,38.90870302,197.28,197.23,42.52]
[1755182539958,0.72,197.27,197.23,42.52]
[1755182540155,26.0,197.28,197.23,54.70870302]
[1755182540379,26.0,197.28,197.24,12.18870302]
[1755182541073,26.72,197.28,197.23,54.70870302]
[1755182541585,5.7891945,197.27,197.23,54.70870302]
[1755182541788,5.7891945,197.27,197.23,42.52]
[1755182542087,0.72,197.26,197.23,42.52]
[1755182542486,0.72,197.26,197.19,0.51]
[1755182542661,0.72,197.26,197.2,42.48]
[1755182542862,0.72,197.26,197.21,12.18870302]
[1755182543061,12.90870302,197.25,197.17,15.20874]
[1755182543263,12.90870302,197.25,197.18,42.48]
[1755182543264,12.18870302,197.23,197.18,42.48]
[1755182543492,26.72,197.25,197.18,42.48]
[1755182543493,12.90870302,197.22,197.18,42.48]
[1755182543786,5.07073677,197.21,197.19,42.48]
[1755182543978,17.97943979,197.21,197.19,42.48]
[1755182544291,12.18870302,197.23,197.19,42.48]
[1755182544499,26.0,197.24,197.21,12.18870302]
[1755182544668,17.25740122,197.29,197.23,12.18870302]
[1755182544860,26.0,197.26,197.24,42.46]
[1755182545279,17.25740122,197.29,197.24,42.46]
[1755182545460,26.0,197.26,197.24,42.46]
[1755182545678,0.06,197.34,197.24,54.64870302]
[1755182545679,5.06765316,197.33,197.24,54.64870302]
[1755182545881,0.06,197.34,197.32,12.18870302]
[1755182546180,0.06,197.34,197.33,42.46]
[1755182546568,0.06,197.34,197.33,54.64870302]
[1755182547189,0.06,197.34,197.33,42.46]